bitfinex/quotes_ETHUSD_20260119
["timestamp","ask_amount","ask_price","bid_price","bid_amount"]
[1768864448793,1.70057248,3177.1,3176.0,0.9647026]
[1768864448998,3.14845254,3177.2,3176.1,0.9647026]
[1768864448999,0.001,3177.2,3176.1,0.9647026]
[1768864449632,0.001,3177.2,3175.9,3.15068494]
[1768864449633,0.97361526,3176.8,3175.9,0.002]
[1768864449812,0.97361526,3176.8,3175.9,0.9667026]
[1768864450730,3.1476683,3177.0,3175.9,0.9667026]
[1768864451027,0.97361526,3176.9,3175.9,0.9667026]
[1768864451215,0.97361526,3176.9,3176.0,0.464]
[1768864451613,0.97361526,3176.9,3176.0,1.4287026]
[1768864451915,0.97361526,3176.9,3176.1,0.9647026]
[1768864453119,7.02231926,3177.0,3176.1,0.9647026]
[1768864453325,0.79959345,3176.9,3176.1,0.9647026]
[1768864454207,3.1476683,3177.0,3176.1,0.9647026]
[1768864454613,6.2953366,3177.0,3176.1,0.9647026]
[1768864457026,3.1476683,3177.0,3176.1,0.9647026]
[1768864457229,4.12116797,3177.1,3176.1,0.9647026]
[1768864457230,3.14756395,3177.1,3176.1,0.9647026]
[1768864457832,0.001,3176.8,3176.1,0.9647026]
[1768864458729,0.001,3177.2,3176.2,0.9647026]
[1768864462006,0.001,3177.2,3176.3,0.9647026]
[1768864464037,0.001,3177.2,3176.3,10.70588418]
[1768864464232,0.001,3177.2,3176.4,0.99563609]
[1768864465043,9.48595165,3178.7,3177.1,0.97371254]
[1768864465044,0.95961857,3178.7,3177.1,0.97371254]
[1768864465340,3.14574223,3178.9,3177.3,0.97119493]
[1768864465341,0.95961857,3178.5,3177.3,0.97119493]
[1768864465914,0.95961857,3178.3,3177.3,0.97119493]
[1768864466237,0.95961857,3177.9,3176.8,0.97119493]
[1768864466470,0.95961857,3177.9,3176.9,0.465]
[1768864467344,0.95961857,3177.9,3176.5,0.97119493]
[1768864467507,0.95961857,3177.9,3177.0,0.465]
[1768864468339,0.95961857,3177.8,3177.0,0.465]
[1768864468540,1.37025946,3177.8,3176.6,0.97119493]
[1768864468740,0.95961857,3177.7,3176.7,0.465]
[1768864469622,0.95961857,3177.3,3175.0,0.002]
[1768864469830,0.95961857,3177.3,3176.3,0.002]
[1768864470715,0.001,3177.6,3176.3,0.002]
[1768864470716,0.95961857,3177.1,3176.3,0.002]
[1768864471329,0.95961857,3177.1,3175.9,0.467]
[1768864471532,6.2948508,3177.2,3176.0,0.97119493]
[1768864471533,3.1474254,3177.2,3176.0,0.97119493]
[1768864471732,0.95961857,3177.4,3176.0,0.97119493]
[1768864472745,0.95961857,3177.4,3176.1,6.29703094]
[1768864473047,4.10689326,3177.4,3176.2,0.97119493]
[1768864473545,0.95961857,3177.4,3176.2,0.97119493]
[1768864473962,0.001,3177.6,3176.2,0.97119493]
[1768864474848,0.001,3177.6,3176.4,0.97119493]
[1768864476116,0.96061857,3177.6,3176.5,0.465]
[1768864476527,0.001,3177.6,3176.6,0.97119493]
[1768864476923,0.001,3177.6,3176.6,4.1191185]
[1768864477128,0.001,3177.6,3176.6,0.97119493]
[1768864477129,0.96061857,3177.6,3176.6,0.97119493]
[1768864477340,0.96061857,3177.6,3176.0,0.97119493]
[1768864477528,0.96061857,3177.6,3175.8,3.8]
[1768864477529,0.96061857,3177.6,3176.4,3.14814227]
[1768864477755,0.96061857,3177.6,3176.2,0.97119493]
[1768864477932,0.96061857,3177.6,3176.4,3.1481279]
[1768864478259,0.96061857,3177.6,3176.5,3.14811695]
[1768864479231,0.95961857,3177.5,3176.3,7.26782731]
[1768864479632,0.95961857,3177.5,3176.3,4.11951009]
[1768864479834,0.95961857,3177.5,3176.3,7.26782731]
[1768864480971,0.93913691,3177.4,3176.1,0.465]
[1768864481172,0.93913691,3177.2,3176.0,0.93508937]
[1768864481373,0.93913691,3177.2,3176.1,0.465]
[1768864481572,0.93913691,3177.2,3175.9,0.002]
[1768864481753,0.93913691,3177.0,3176.0,0.465]
[1768864482352,0.93913691,3177.0,3175.9,0.002]
[1768864483175,0.93913691,3176.8,3175.9,0.002]
[1768864483337,0.93913691,3176.8,3175.5,0.002]
[1768864483659,9.44316786,3176.9,3175.5,0.002]
[1768864483660,0.93913691,3176.6,3175.5,0.002]
[1768864484448,0.93913691,3176.6,3175.1,0.465]
[1768864485738,0.93913691,3176.4,3175.1,0.465]
[1768864487253,0.93913691,3176.4,3175.2,0.93508937]
[1768864487753,3.14831722,3176.3,3175.2,0.93508937]
[1768864487939,0.93913691,3176.2,3175.2,0.93508937]
[1768864488142,0.93913691,3176.2,3175.2,4.08447286]
[1768864488683,0.93913691,3176.2,3175.2,0.93508937]
[1768864489045,0.93913691,3176.2,3175.2,4.08447349]
[1768864489656,0.93913691,3176.2,3175.2,4.08449454]
[1768864490987,0.93913691,3176.5,3175.3,0.93508937]
[1768864491144,0.93913691,3176.9,3175.3,0.93508937]
[1768864492492,4.08695861,3176.8,3175.5,0.93508937]
[1768864492886,0.99314272,3176.1,3175.1,0.465]
[1768864493285,0.99314272,3176.1,3175.5,0.002]
[1768864494466,0.99314272,3176.0,3175.5,0.002]
[1768864495681,1.40731226,3176.0,3175.1,0.46462]
[1768864496201,4.55595684,3176.0,3175.1,0.46462]
[1768864496402,1.40731226,3176.0,3175.1,0.46462]
[1768864498479,0.99314272,3175.9,3175.1,0.002]
[1768864498697,0.99314272,3175.9,3175.0,0.002]
[1768864500071,0.99314272,3175.7,3175.0,0.002]
[1768864501418,3.14881289,3175.8,3175.0,0.002]
[1768864501419,0.99314272,3176.0,3175.1,0.96891377]
[1768864501620,0.99314272,3176.0,3175.0,0.002]
[1768864501621,0.99314272,3177.1,3175.3,0.96891377]
[1768864501960,0.99314272,3177.1,3175.0,0.002]
[1768864501961,0.99314272,3177.0,3175.0,0.002]
[1768864502209,0.99314272,3176.8,3175.1,0.96891377]
[1768864502357,0.99314272,3176.8,3175.0,0.467]
[1768864502561,12.59089048,3176.9,3175.0,0.467]
[1768864502562,0.99314272,3176.6,3175.0,0.467]
[1768864502798,0.99314272,3176.5,3175.0,0.002]
[1768864503005,0.99314272,3176.2,3175.0,0.002]
[1768864503191,0.99314272,3176.0,3175.0,0.002]
[1768864504479,0.99314272,3175.8,3175.0,0.002]
[1768864504800,0.99314272,3175.6,3175.0,0.002]
[1768864505905,0.99314272,3175.6,3175.3,0.002]
[1768864506123,0.99314272,3175.5,3174.6,0.002]
[1768864506328,0.99314272,3175.2,3174.3,1e-08]
[1768864506461,6.299411,3174.9,3173.7,0.002]
[1768864506771,0.99314272,3174.8,3173.7,0.002]
[1768864508699,0.99314272,3174.6,3173.7,0.002]
[1768864509710,0.99314272,3174.5,3173.7,0.002]
[1768864509892,0.99314272,3174.0,3172.8,0.002]
[1768864510090,0.99314272,3173.8,3172.0,0.96891377]
[1768864510465,0.99314272,3173.8,3172.1,3.15247933]
[1768864510666,0.99314272,3173.6,3172.1,3.15247933]
[1768864510895,0.99314272,3173.6,3172.0,4.12148838]
[1768864511097,0.99314272,3173.6,3172.0,0.96891377]
[1768864511701,0.99314272,3173.6,3171.9,0.002]
[1768864511996,0.99314272,3173.5,3171.9,0.002]
[1768864512196,0.99314272,3173.3,3171.9,0.002]
[1768864512792,0.99314272,3173.1,3171.9,0.002]
[1768864514604,0.99314272,3173.1,3171.9,0.97091377]
[1768864514805,0.99314272,3173.4,3172.1,0.96891377]
[1768864515103,1.45627626,3173.4,3172.1,0.96891377]
[1768864515306,0.99314272,3173.3,3172.1,0.96891377]
[1768864515710,0.99314272,3174.3,3172.1,0.96891377]
[1768864515914,0.99314272,3174.3,3172.3,0.96891377]
[1768864516822,0.99314272,3174.3,3172.5,0.96891377]
[1768864516979,0.99314272,3174.7,3172.5,0.96891377]
[1768864518210,0.001,3174.5,3172.5,0.96891377]
[1768864518577,0.99314272,3174.3,3172.5,0.96891377]
[1768864518906,0.99314272,3173.9,3172.6,6.7689778]
[1768864519810,0.99314272,3173.9,3172.6,3.6169889]
[1768864520176,0.99314272,3173.9,3172.6,6.7689778]
[1768864520417,0.99314272,3174.4,3172.7,0.96891377]
[1768864520630,0.99314272,3174.4,3172.6,6.3039778]
[1768864520921,0.99314272,3174.1,3172.9,3.15169088]
[1768864521074,0.99314272,3174.1,3172.9,6.30338176]
[1768864521473,0.99314272,3174.1,3172.9,3.15169088]
[1768864521710,0.99314272,3174.1,3172.7,3.15188061]
[1768864522012,0.99314272,3174.1,3172.4,0.97091377]
[1768864522013,0.99314272,3173.9,3172.6,3.15189826]
[1768864522221,0.99314272,3173.9,3172.8,3.61674383]
[1768864522595,0.99314272,3173.9,3172.8,0.465]
[1768864522890,0.99314272,3173.7,3172.4,0.002]
[1768864523086,0.9291925,3173.5,3172.4,0.002]
[1768864523286,0.9291925,3173.5,3172.0,0.002]
[1768864525179,0.9291925,3173.3,3172.0,0.002]
[1768864525410,4.08021096,3173.6,3172.0,0.91993512]
[1768864525608,0.9291925,3173.5,3172.0,0.91993512]
[1768864527012,0.9291925,3173.5,3172.0,0.002]
[1768864527201,0.9291925,3173.3,3172.0,3.61957393]
[1768864527510,0.9291925,3173.1,3172.0,3.61957393]
[1768864528292,0.9291925,3173.1,3172.0,6.77215904]
[1768864528702,0.9291925,3173.9,3172.1,0.91793512]
[1768864529217,0.9291925,3173.8,3172.3,0.91793512]
[1768864529924,0.9291925,3173.8,3172.3,0.91993512]
[1768864530531,0.001,3173.6,3172.3,0.91993512]
[1768864531089,0.001,3173.6,3172.4,6.30437522]
[1768864531294,0.001,3173.6,3172.4,7.22231034]
[1768864532226,0.001,3173.6,3172.4,10.37449795]
[1768864532388,0.001,3173.6,3172.5,0.91793512]
[1768864532593,0.001,3173.6,3172.6,1.38293512]
[1768864533349,0.001,3173.6,3172.7,6.3037791]
[1768864533556,0.001,3173.6,3172.8,0.91793512]
[1768864533836,4.08036377,3174.5,3172.8,0.91793512]
[1768864534048,0.9291925,3174.3,3172.8,0.91793512]
[1768864534195,0.9291925,3174.3,3172.9,0.465]
[1768864535200,0.9291925,3174.2,3173.0,6.3031831]
[1768864535627,0.9291925,3174.2,3173.0,3.15159155]
[1768864536135,0.9291925,3174.2,3173.1,0.465]
[1768864537403,0.9291925,3174.0,3172.8,0.91793512]
[1768864537621,0.9291925,3174.0,3173.1,3.15146771]
[1768864538009,0.9291925,3174.0,3173.1,6.30295994]
[1768864538216,0.9291925,3174.3,3173.1,6.30295994]
[1768864538530,0.9291925,3174.3,3173.1,3.15146771]
[1768864538832,0.9291925,3174.2,3173.1,3.15146771]
[1768864539329,0.9291925,3174.2,3173.2,0.465]
[1768864541040,3.15049395,3174.2,3173.2,0.465]
[1768864541242,0.9291925,3174.1,3173.3,0.465]
[1768864542052,0.001,3174.5,3173.4,0.002]
[1768864542053,4.07943276,3174.4,3173.4,0.002]
[1768864542341,0.001,3173.7,3173.4,0.002]
[1768864543131,0.001,3173.7,3173.4,3.1531943]
[1768864543446,0.001,3173.7,3173.4,0.002]
[1768864543953,0.001,3174.5,3173.4,0.94522496]
[1768864544604,0.96020092,3174.5,3173.4,0.002]
[1768864544808,0.95920092,3174.4,3173.5,0.465]
[1768864545004,0.001,3174.5,3173.6,0.465]
[1768864545210,0.001,3174.5,3173.7,3.15089643]
[1768864545423,0.001,3174.5,3173.7,7.24501782]
[1768864546054,0.001,3174.5,3173.7,4.09412139]
[1768864546452,0.001,3174.5,3173.7,7.24501782]
[1768864546830,0.001,3174.5,3173.7,4.09412139]
[1768864547559,0.001,3174.5,3173.7,7.24501782]
[1768864549143,0.001,3174.5,3173.8,0.94322496]
[1768864549450,0.001,3174.5,3173.9,4.09392283]
[1768864549652,0.001,3174.5,3173.9,3.15069787]
[1768864549864,0.001,3174.5,3174.0,0.466]
[1768864551662,0.001,3174.5,3174.0,3.61657849]
[1768864552029,0.001,3174.5,3174.0,0.466]
[1768864552557,0.001,3174.5,3174.0,3.61658485]
[1768864552972,0.001,3174.5,3174.0,0.466]
[1768864553568,0.001,3174.5,3174.0,3.61657197]
[1768864554368,0.001,3174.2,3174.0,7.68165626]
[1768864554570,0.99096982,3175.3,3174.1,0.91448568]
[1768864555579,0.99096982,3175.3,3174.2,7.21528588]
[1768864555740,0.99096982,3175.3,3174.3,0.91448568]
[1768864556136,0.99096982,3175.3,3174.4,0.466]
[1768864557573,0.99096982,3175.2,3174.4,3.61617114]
[1768864557875,0.99096982,3175.2,3174.5,0.466]
[1768864559456,0.99096982,3175.2,3174.4,3.15012119]
[1768864559666,0.99096982,3175.2,3174.5,3.61609137]
[1768864559972,0.99096982,3175.2,3174.5,0.466]
[1768864560788,0.99096982,3175.2,3174.4,3.1501552]
[1768864560957,0.99096982,3175.2,3173.4,3.15318823]
[1768864560958,0.99096982,3175.1,3173.4,3.15318823]
[1768864561281,0.99096982,3175.1,3173.7,3.15087741]
[1768864561452,0.99096982,3175.1,3173.6,3.15097955]
[1768864561851,0.99096982,3174.9,3173.6,3.15097955]
[1768864562083,0.99096982,3174.7,3173.4,0.002]
[1768864562481,0.99096982,3174.7,3173.4,0.468]
[1768864563783,0.99096982,3174.7,3173.0,0.002]
[1768864563784,0.99096982,3174.3,3173.0,0.002]
[1768864563974,0.99096982,3174.3,3173.0,0.468]
[1768864565582,0.99096982,3174.3,3173.1,0.91448568]
[1768864565782,0.99096982,3174.3,3173.2,4.06587859]
[1768864565953,0.99096982,3174.3,3173.1,3.15146177]
[1768864565954,0.99096982,3174.2,3173.1,3.15146177]
[1768864566152,0.99096982,3174.2,3173.0,0.002]
[1768864566354,0.99096982,3174.2,3173.3,0.002]
[1768864566762,0.99196982,3174.2,3173.3,0.002]
[1768864566960,0.99096982,3174.0,3173.3,0.002]
[1768864569703,0.99096982,3173.9,3173.3,0.002]
[1768864570199,0.77067302,3174.1,3173.3,0.002]
[1768864570383,0.99196982,3174.2,3173.3,0.91648568]
[1768864571387,0.99196982,3174.2,3173.3,4.06776544]
[1768864571626,0.99096982,3174.1,3173.3,0.002]
[1768864571788,0.99096982,3174.1,3173.3,3.15327983]
[1768864571988,0.99096982,3174.1,3173.0,0.002]
[1768864571989,0.99096982,3174.0,3173.0,0.002]
[1768864572198,0.99096982,3173.6,3172.3,0.002]
[1768864572793,0.99096982,3173.6,3172.0,0.002]
[1768864572794,0.99096982,3173.5,3172.0,0.002]
[1768864572978,0.99096982,3173.3,3172.0,0.002]
[1768864573496,3.803,3173.4,3172.0,0.002]
[1768864573497,0.99096982,3173.1,3172.0,0.002]
[1768864576600,0.99096982,3172.9,3172.0,0.002]
[1768864577466,0.99096982,3173.3,3172.0,0.91648568]
[1768864577793,1.45398735,3173.2,3172.0,0.91648568]
[1768864577965,0.99096982,3173.1,3172.0,0.91648568]
[1768864578162,0.99096982,3173.1,3172.1,0.466]
[1768864578809,0.99096982,3173.1,3172.3,0.002]
[1768864579466,0.99096982,3173.4,3172.3,0.002]
[1768864579666,4.14220328,3173.4,3172.3,0.002]
[1768864579869,1.40519015,3173.3,3172.3,0.002]
[1768864580799,4.1419671,3173.6,3172.3,0.91648568]
[1768864581313,0.99096982,3173.5,3172.3,0.91648568]
[1768864581486,0.99096982,3173.5,3172.4,0.466]
[1768864581689,0.99096982,3173.5,3172.3,0.002]
[1768864581887,0.99096982,3173.3,3172.5,0.466]
[1768864582287,0.001,3173.7,3172.6,0.91448568]
[1768864582485,0.001,3173.7,3172.3,0.002]
[1768864582486,0.99096982,3173.6,3172.3,0.91648568]
[1768864582797,0.99096982,3173.4,3172.5,0.466]
[1768864582983,6.30219,3173.5,3172.5,0.466]
[1768864582984,0.9012026,3173.2,3172.5,0.466]
[1768864587307,0.9012026,3173.2,3172.5,3.61805602]
[1768864587610,0.9012026,3173.2,3172.5,0.466]
[1768864588516,0.72931598,3173.3,3169.9,0.16430945]
[1768864588517,0.9012026,3172.5,3169.9,0.16430945]
[1768864588680,0.9012026,3172.5,3170.1,0.99224801]
[1768864588681,0.9012026,3172.0,3170.1,0.99224801]
[1768864588878,0.9012026,3171.9,3170.3,0.99224801]
[1768864589409,0.9012026,3171.9,3170.0,0.466]
[1768864589799,0.9012026,3171.9,3170.1,4.14670483]
[1768864590005,0.9012026,3171.9,3170.0,3.6205386]
[1768864590316,0.9012026,3171.9,3170.1,3.15442221]
[1768864590545,0.9012026,3171.8,3169.4,0.99224801]
[1768864590831,0.9012026,3171.4,3169.5,0.466]
[1768864591011,0.9012026,3171.2,3169.6,3.15497223]
[1768864591423,0.9012026,3171.2,3169.7,0.466]
[1768864591605,0.9012026,3171.2,3169.4,0.99224801]
[1768864591812,0.9012026,3171.2,3169.5,3.15504526]
[1768864592017,0.9012026,3171.2,3169.6,0.466]
[1768864592231,0.9012026,3171.2,3169.0,0.99224801]
[1768864592414,0.9012026,3171.2,3169.4,0.466]
[1768864592608,0.9012026,3171.2,3169.2,3.15535612]
[1768864592807,0.98454441,3170.8,3168.6,0.94206783]
[1768864593040,0.98454441,3170.6,3168.6,0.94206783]
[1768864593334,0.488,3170.7,3167.5,3.15701412]
[1768864593335,0.98454441,3170.1,3167.5,3.15701412]
[1768864593540,0.98454441,3169.9,3168.3,3.15624863]
[1768864593711,0.98454441,3169.7,3168.0,1.40806783]
[1768864593906,0.98454441,3169.7,3168.0,4.56462419]
[1768864594106,0.98454441,3169.7,3168.0,1.40806783]
[1768864594305,1.33525349,3170.0,3168.4,0.94206783]
[1768864594609,0.98454441,3170.1,3168.1,0.94206783]
[1768864594809,1.37571931,3171.1,3168.4,0.94206783]
[1768864595039,0.98454441,3170.9,3168.4,0.94206783]
[1768864595627,0.98454441,3170.9,3168.6,0.94206783]
[1768864595837,0.98454441,3170.9,3168.8,0.94206783]
[1768864596449,4.62589237,3171.3,3169.0,0.94206783]
[1768864596932,0.98454441,3171.2,3169.2,0.94206783]
[1768864597141,0.98454441,3171.1,3169.2,0.94206783]
[1768864597506,0.98454441,3171.1,3169.4,0.94206783]
[1768864597811,0.98454441,3171.1,3169.3,0.466]
[1768864598632,0.98454441,3171.1,3169.3,1.40806783]
[1768864598840,0.98454441,3170.8,3169.4,6.31034264]
[1768864599008,1.39836673,3170.8,3169.4,6.31034264]
[1768864599221,0.98454441,3170.7,3169.4,3.15517132]
[1768864599400,0.98454441,3170.7,3169.4,6.31034264]
[1768864600436,0.98454441,3170.7,3169.4,3.15517132]
[1768864600839,0.98454441,3170.7,3169.4,6.31034264]
[1768864601144,0.98454441,3171.1,3169.5,0.94206783]
[1768864601657,0.98395968,3171.0,3169.5,0.94206783]
[1768864602541,0.98395968,3171.0,3169.6,0.002]
[1768864602717,0.98395968,3170.7,3169.6,0.002]
[1768864602906,0.001,3170.8,3169.3,0.002]
[1768864602907,0.98395968,3170.2,3169.3,0.002]
[1768864603209,0.98395968,3170.0,3169.3,0.002]
[1768864603841,0.98395968,3170.0,3168.0,0.93924647]
[1768864604152,0.98395968,3170.0,3168.4,3.15611006]
[1768864604440,0.98395968,3170.0,3168.4,3.15616537]
[1768864604838,0.98395968,3169.8,3168.1,3.62244883]
[1768864605047,0.98395968,3169.6,3168.0,0.002]
[1768864605348,0.98395968,3169.6,3168.1,0.466]
[1768864605554,0.98395968,3169.6,3168.0,3.15850157]
[1768864605555,0.98395968,3169.6,3166.5,0.16730676]
[1768864605556,0.98395968,3168.6,3166.5,0.16730676]
[1768864605855,0.98395968,3168.4,3166.5,0.003]
[1768864606055,0.98395968,3168.4,3166.6,0.93724647]
[1768864606258,0.98395968,3168.4,3166.6,3.15795225]
[1768864606426,0.98395968,3168.4,3166.5,0.003]
[1768864606917,0.98395968,3168.2,3166.5,0.003]
[1768864607120,0.98395968,3167.8,3165.5,0.466]
[1768864607467,17.11652881,3168.3,3165.2,3.15928264]
[1768864607468,0.98395968,3167.6,3165.2,3.15928264]
[1768864607643,0.98395968,3167.4,3165.3,0.466]
[1768864608026,0.98395968,3167.4,3164.3,2.81741176]
[1768864608216,0.98395968,3167.1,3164.7,0.93724647]
[1768864608460,1.33519501,3167.0,3165.9,6.31727352]
[1768864608662,0.98395968,3167.4,3165.9,3.15861406]
[1768864608870,6.31452656,3167.3,3165.7,0.466]
[1768864609050,0.98395968,3168.1,3165.9,0.93724647]
[1768864609355,0.98395968,3168.1,3166.0,0.466]
[1768864609551,0.98395968,3167.9,3166.1,0.93724647]
[1768864610251,0.72966925,3168.0,3166.1,0.93724647]
[1768864610455,0.98395968,3168.4,3166.1,0.93724647]
[1768864610655,0.98395968,3169.4,3166.1,0.93724647]
[1768864610964,4.13924496,3169.3,3166.9,0.93724647]
[1768864611158,0.4627245,3169.2,3167.1,0.93724647]
[1768864611928,0.98395968,3169.3,3167.0,0.466]
[1768864611929,0.98395968,3169.3,3167.3,0.93724647]
[1768864612129,4.1392874,3169.3,3167.3,0.93724647]
[1768864612357,0.98395968,3169.2,3167.0,0.466]
[1768864612654,0.98395968,3168.5,3167.0,0.466]
[1768864612839,0.98395968,3168.3,3167.0,0.466]
[1768864613041,4.14027077,3168.3,3167.1,3.15746266]
[1768864613221,0.98395968,3168.3,3167.1,6.31492532]
[1768864613422,3.15586833,3168.7,3167.1,6.31492532]
[1768864613654,0.45446922,3168.6,3167.1,6.31492532]
[1768864614241,0.45446922,3168.6,3167.1,9.47238798]
[1768864614446,0.9008239,3169.3,3167.2,0.95044521]
[1768864614648,0.488,3169.7,3167.2,0.95044521]
[1768864615155,0.9008239,3169.9,3167.4,0.95044521]
[1768864615672,0.9008239,3169.9,3167.5,0.95044521]
[1768864615825,0.9008239,3169.9,3167.7,0.95044521]
[1768864616024,0.9008239,3169.9,3167.8,1.41644521]
[1768864616323,12.36899046,3170.8,3168.0,1.57559721]
[1768864616527,1.23689905,3170.7,3168.4,0.95044521]
[1768864616746,0.9018239,3170.8,3167.6,12.36799046]
[1768864616747,0.9018239,3170.8,3168.6,0.95044521]
[1768864616943,0.9008239,3170.6,3168.7,0.466]
[1768864617149,0.9008239,3170.3,3168.8,3.15576874]
[1768864617525,0.9008239,3170.1,3168.8,6.31153748]
[1768864618854,0.9008239,3170.6,3168.8,9.46730622]
[1768864619059,0.9008239,3170.5,3168.7,3.15581694]
[1768864620027,0.9008239,3170.4,3168.6,6.31193586]
[1768864620223,0.9008239,3169.9,3167.8,3.15670194]
[1768864620422,13.08204805,3170.6,3167.8,3.15676319]
[1768864620423,0.9008239,3169.4,3167.8,3.15676319]
[1768864620628,0.9008239,3169.2,3167.5,3.1570035]
[1768864620865,0.9008239,3169.2,3167.3,3.15720348]
[1768864621158,0.9008239,3169.2,3167.1,3.62344405]
[1768864621159,0.9008239,3168.8,3167.1,0.466]
[1768864621550,0.488,3168.8,3167.1,1.41644521]
[1768864621728,0.488,3168.8,3167.2,0.95044521]
[1768864622061,0.27157053,3169.1,3167.2,0.95044521]
[1768864623167,0.27157053,3169.1,3167.4,0.95044521]
[1768864623336,0.488,3169.7,3167.4,0.95044521]
[1768864624761,0.48485,3169.7,3167.6,0.95044521]
[1768864625163,0.48485,3169.7,3167.8,0.95044521]
[1768864625360,3.63972955,3169.7,3167.8,0.95044521]
[1768864625537,0.36397296,3169.6,3167.8,0.95044521]
[1768864625860,1.26479686,3169.6,3167.9,0.466]
[1768864626274,0.001,3169.4,3168.0,0.90044521]
[1768864627131,0.9008239,3170.2,3168.0,0.90044521]
[1768864627132,0.9008239,3170.1,3168.1,9.46939806]
[1768864627331,0.9008239,3170.1,3168.1,6.31293204]
[1768864627575,0.9008239,3170.1,3168.2,0.466]
[1768864627968,0.9008239,3170.1,3168.3,0.95044521]
[1768864628169,3.64220209,3170.4,3168.3,0.95044521]
[1768864628351,0.36422021,3170.3,3168.3,0.95044521]
[1768864628872,1.26504411,3170.3,3168.3,0.95044521]
[1768864629242,1.26504411,3170.3,3168.5,0.95044521]
[1768864629446,4.05510175,3170.3,3168.5,0.95044521]
[1768864630355,3.15427785,3170.3,3168.5,0.95044521]
[1768864631704,0.9008239,3170.5,3168.6,9.46790379]
[1768864631975,0.9008239,3170.5,3168.6,10.418349]
[1768864632181,0.9008239,3170.5,3168.7,0.95044521]
[1768864632376,0.9008239,3170.5,3168.8,0.467]
[1768864632948,0.9008239,3170.5,3168.9,0.95044521]
[1768864633378,0.9008239,3170.7,3168.9,0.95044521]
[1768864633578,6.30859126,3170.8,3167.9,16.16799046]
[1768864633579,0.001,3170.8,3169.2,0.95044521]
[1768864633785,0.001,3170.8,3169.4,0.95044521]
[1768864633982,0.001,3170.8,3169.5,0.467]
[1768864634279,0.001,3170.8,3169.4,0.95044521]
[1768864634449,0.001,3170.8,3169.6,0.467]
[1768864634780,0.001,3170.8,3169.7,0.95044521]
[1768864635082,4.05341068,3172.0,3169.8,0.95044521]
[1768864635263,1.30616497,3171.9,3169.8,0.95044521]
[1768864635463,0.9008239,3171.8,3169.8,0.95044521]
[1768864635666,0.40534107,3171.9,3169.9,6.30934728]
[1768864635667,0.9008239,3171.6,3169.9,6.30934728]
[1768864635868,0.9008239,3171.6,3170.0,0.467]
[1768864636696,0.488,3171.8,3170.1,0.95044521]
[1768864636865,0.1794165,3171.8,3170.1,0.95044521]
[1768864637374,0.488,3172.3,3170.1,0.95044521]
[1768864637575,0.488,3172.3,3170.0,0.467]
[1768864637576,0.488,3172.3,3170.3,0.95044521]
[1768864637774,3.6402907,3172.3,3170.3,0.95044521]
[1768864637982,0.001,3171.5,3170.3,0.95044521]
[1768864638690,0.001,3171.5,3170.4,0.467]
[1768864638894,0.001,3171.5,3170.2,6.30875022]
[1768864639057,0.001,3171.5,3170.5,0.467]
[1768864639777,0.001,3171.5,3170.6,6.30795432]
[1768864640505,0.001,3171.5,3170.6,9.46193148]
[1768864640708,0.001,3171.5,3170.6,12.61590864]
[1768864640883,0.001,3171.5,3170.7,0.467]
[1768864641210,0.001,3171.5,3170.4,3.15417459]
[1768864641211,0.9018239,3171.5,3170.4,3.15417459]
[1768864641507,0.9018239,3171.5,3170.3,3.15423962]
[1768864641682,0.9008239,3171.3,3170.4,0.467]
[1768864642005,0.40540055,3171.2,3170.4,0.467]
[1768864642206,0.40540055,3171.2,3169.4,0.95044521]
[1768864642207,0.9008239,3171.1,3169.4,0.95044521]
[1768864642376,0.9008239,3171.1,3169.5,0.467]
[1768864642778,0.9008239,3171.1,3169.0,0.95044521]
[1768864643022,0.9008239,3171.1,3169.2,0.91850273]
[1768864643391,0.9008239,3171.1,3169.8,3.154713]
[1768864643592,0.9008239,3171.1,3169.7,3.15482989]
[1768864643796,0.96206379,3170.9,3169.3,3.15527088]
[1768864644002,0.96206379,3170.7,3169.3,3.15527088]
[1768864644312,0.96206379,3170.7,3169.3,0.467]
[1768864644518,0.96206379,3170.6,3169.2,0.467]
[1768864644813,0.96206379,3170.6,3169.2,6.77772901]
[1768864646017,3.15407664,3170.5,3169.2,6.77772901]
[1768864646318,1.37367783,3170.4,3169.2,0.467]
[1768864646684,1.37367783,3170.4,3168.6,0.002]
[1768864646685,0.96206379,3170.3,3168.8,3.1557435]
[1768864646884,0.96206379,3170.3,3168.6,3.62495605]
[1768864647087,0.96206379,3170.3,3168.8,3.15571472]
[1768864647515,0.96206379,3170.3,3168.7,3.15582269]
[1768864647704,0.96206379,3170.3,3168.6,0.469]
[1768864648101,0.41161404,3170.4,3168.6,0.469]
[1768864648102,0.96206379,3170.1,3168.7,3.15586713]
[1768864648306,0.7270814,3170.0,3168.7,6.31173546]
[1768864648900,0.7270814,3170.0,3168.7,3.15586713]
[1768864649516,0.7270814,3170.0,3168.7,6.31173546]
[1768864650286,7.99829809,3170.0,3168.7,3.15586713]
[1768864650506,7.99829809,3170.0,3168.9,0.002]
[1768864650721,0.79982981,3169.9,3168.9,0.002]
[1768864651416,4.1166447,3170.0,3168.9,0.002]
[1768864652592,0.41161404,3170.4,3168.9,0.92050273]
[1768864653108,0.96206379,3170.5,3168.9,0.92050273]
[1768864653531,0.96206379,3170.3,3168.9,0.002]
[1768864653896,0.96206379,3170.1,3168.9,0.002]
[1768864654295,7.27121205,3170.0,3168.9,0.002]
[1768864654548,0.96206379,3169.8,3168.9,0.002]
[1768864655847,0.96206379,3169.8,3168.6,0.002]
[1768864656631,0.96206379,3169.6,3168.6,0.002]
[1768864656845,0.96206379,3169.5,3168.6,0.002]
[1768864657005,0.96206379,3169.5,3168.3,0.002]
[1768864658650,0.488,3169.6,3167.7,3.15681101]
[1768864658651,0.96206379,3169.3,3167.7,3.15681101]
[1768864658951,0.96206379,3169.1,3167.8,3.15675134]
[1768864659152,1.35827491,3169.2,3167.8,3.15675134]
[1768864659153,1.35827491,3169.2,3167.9,0.91850273]
[1768864659351,0.488,3169.3,3167.9,0.91850273]
[1768864659652,3.15517132,3169.4,3167.9,0.91850273]
[1768864660661,3.15517132,3169.4,3168.0,7.23163403]
[1768864660830,0.96206379,3169.5,3168.0,10.38819968]
[1768864661030,0.96206379,3169.4,3167.7,3.15679827]
[1768864661348,0.96206379,3169.2,3167.6,1.38550273]